bitfinex/quotes_SOLUSD_20250922
["timestamp","ask_amount","ask_price","bid_price","bid_amount"]
[1758523128854,6.0146888,225.62,225.54,0.69]
[1758523129152,15.51005937,225.66,225.56,13.38]
[1758523129355,6.0146888,225.6,225.57,0.21959204]
[1758523129532,6.0146888,225.58,225.54,52.24]
[1758523129725,6.0146888,225.55,225.54,13.38]
[1758523130052,10.44829553,225.55,225.53,13.38]
[1758523130347,4.43360673,225.55,225.53,13.38]
[1758523130646,6.0146888,225.54,225.53,13.38]
[1758523131145,15.5148721,225.59,225.53,13.38]
[1758523131337,6.0146888,225.54,225.53,13.38]
[1758523131924,10.64849211,225.54,225.49,38.86]
[1758523132123,6.0146888,225.5,225.46,38.86]
[1758523132430,31.2,225.52,225.34,0.22019077]
[1758523132629,6.0146888,225.49,225.36,11.09299935]
[1758523132934,6.0146888,225.49,225.37,0.91054561]
[1758523133241,6.0146888,225.49,225.38,0.69]
[1758523133441,6.0146888,225.49,225.4,13.38]
[1758523133647,6.0146888,225.49,225.41,0.91039833]
[1758523133836,31.2,225.52,225.42,0.69]
[1758523134144,6.0146888,225.45,225.44,13.38]
[1758523134731,4.43439315,225.51,225.44,13.38]
[1758523134929,6.0146888,225.45,225.44,13.38]
[1758523135546,38.84,225.58,225.44,13.38]
[1758523135547,0.1,225.83,225.45,15.52450653]
[1758523135748,6.0146888,225.61,225.46,14.28995534]
[1758523135936,4.43399991,225.53,225.48,13.38]
[1758523136130,31.2,225.51,225.48,0.69]
[1758523136336,37.2146888,225.51,225.5,13.38]
[1758523136725,31.2,225.51,225.5,13.38]
[1758523137238,31.2,225.51,225.5,52.2]
[1758523137837,31.2,225.51,225.5,13.38]
[1758523138040,35.63439315,225.51,225.5,52.2]
[1758523138344,11.08499977,225.53,225.5,52.2]
[1758523138345,6.0146888,225.55,225.5,52.88]
[1758523138550,10.44790243,225.57,225.51,0.89998538]
[1758523138744,27.2032,225.55,225.51,0.89998538]
[1758523138948,33.2178888,225.55,225.52,38.82]
[1758523139130,27.2032,225.55,225.53,52.2]
[1758523139331,6.0146888,225.54,225.53,13.38]
[1758523139535,0.7,225.55,225.45,0.68]
[1758523139739,0.7,225.56,225.47,13.38]
[1758523140254,0.7,225.55,225.48,52.18]
[1758523140561,0.7,225.55,225.49,38.8]
[1758523141060,0.7,225.59,225.5,0.22001484]
[1758523141525,0.7,225.59,225.52,13.38]
[1758523141733,6.0146888,225.56,225.52,13.38]
[1758523142256,9.99695224,225.56,225.53,0.21990677]
[1758523142450,4.43346344,225.56,225.53,0.21990677]
[1758523142675,37.2146888,225.54,225.52,38.8]
[1758523142951,37.2146888,225.54,225.46,13.38]
[1758523142952,0.7,225.53,225.5,38.78]
[1758523143154,6.0146888,225.51,225.5,38.78]
[1758523143945,6.0146888,225.6,225.5,38.78]
[1758523143946,4.4328206,225.59,225.5,52.84]
[1758523144155,20.0,225.71,225.51,0.89990658]
[1758523144156,10.44711644,225.61,225.51,0.89990658]
[1758523144356,4.43209534,225.63,225.52,0.68]
[1758523144556,6.0146888,225.61,225.53,0.21976888]
[1758523145046,31.2,225.58,225.53,0.21976888]
[1758523145255,6.0146888,225.61,225.54,0.68]
[1758523145448,31.2,225.58,225.56,13.38]
[1758523145846,4.43209534,225.63,225.56,14.06]
[1758523146151,4.43262411,225.6,225.57,0.21965112]
[1758523146455,35.63237796,225.62,225.57,0.21965112]
[1758523146657,10.44706676,225.62,225.58,0.68]
[1758523147038,4.4321044,225.63,225.59,0.89961196]
[1758523147237,4.4321044,225.63,225.61,13.38]
[1758523147847,4.4321044,225.63,225.62,52.14]
[1758523148054,42.3467932,225.63,225.62,13.38]
[1758523148631,41.6467932,225.63,225.62,13.38]
[1758523149055,41.6467932,225.63,225.55,0.68]
[1758523149241,47.41219126,225.63,225.6,7.3153112]
[1758523149435,31.2,225.58,225.49,0.68]
[1758523149639,6.0146888,225.53,225.49,0.68]
[1758523149841,6.0146888,225.51,225.46,0.68]
[1758523150054,4.43498314,225.48,225.47,0.68]
[1758523150259,6.0146888,225.49,225.47,52.75]
[1758523150558,10.44949422,225.49,225.48,52.07]
[1758523150859,10.44949422,225.49,225.48,13.33]
[1758523151059,10.44949422,225.49,225.48,52.07]
[1758523151261,21.53646038,225.49,225.44,0.68]
[1758523151450,21.53646038,225.49,225.45,52.07]
[1758523151451,6.0146888,225.47,225.45,52.07]
[1758523151642,4.43480542,225.49,225.45,52.07]
[1758523151845,6.0146888,225.48,225.45,52.75]
[1758523152561,6.0146888,225.5,225.45,52.75]
[1758523153058,6.0146888,225.48,225.45,14.01]
[1758523153257,6.0146888,225.46,225.45,13.33]
[1758523153451,6.0146888,225.46,225.41,0.68]
[1758523153452,6.0146888,225.46,225.41,13.33]
[1758523153651,31.86,225.5,225.45,38.72]
[1758523153958,31.86,225.49,225.38,0.68]
[1758523154147,31.2,225.45,225.4,13.33]
[1758523154346,31.2,225.45,225.4,14.01]
[1758523154539,31.2,225.45,225.41,0.68]
[1758523154741,37.2146888,225.45,225.41,0.68]
[1758523154937,6.0146888,225.43,225.4,13.33]
[1758523155460,6.0146888,225.41,225.37,0.68]
[1758523155765,6.0146888,225.41,225.38,38.72]
[1758523155961,6.0146888,225.41,225.33,0.2]
[1758523155962,6.0146888,225.39,225.33,0.2]
[1758523156160,35.63773852,225.34,225.33,0.2]
[1758523156347,41.65242732,225.34,225.33,35.94]
[1758523156963,11.09342098,225.36,225.33,35.94]
[1758523156964,6.0146888,225.36,225.33,36.62]
[1758523157264,31.2,225.35,225.34,0.68]
[1758523157463,6.0146888,225.4,225.34,0.68]
[1758523157672,31.2,225.39,225.34,0.68]
[1758523157849,37.2146888,225.39,225.34,0.68]
[1758523158247,4.43695092,225.38,225.34,0.68]
[1758523159171,31.2,225.39,225.35,0.68]
[1758523159462,0.66,225.51,225.36,0.90074294]
[1758523159657,6.0146888,225.48,225.37,0.68]
[1758523159967,4.43380331,225.54,225.37,0.68]
[1758523159968,6.0146888,225.5,225.38,38.92050651]
[1758523160262,4.43478646,225.49,225.39,0.68]
[1758523160450,6.0146888,225.52,225.4,13.55042782]
[1758523160762,31.2,225.49,225.41,0.68]
[1758523160964,21.53437662,225.52,225.42,0.22036884]
[1758523161167,6.0146888,225.5,225.42,0.22036884]
[1758523161361,37.2146888,225.5,225.42,0.22036884]
[1758523161565,6.0146888,225.5,225.42,0.22036884]
[1758523162069,37.2146888,225.5,225.42,0.22036884]
[1758523162365,4.43478646,225.49,225.42,0.22036884]
[1758523162754,4.43478646,225.49,225.43,0.68]
[1758523162959,6.0146888,225.48,225.44,38.68]
[1758523163269,6.6746888,225.48,225.44,38.68]
[1758523163471,0.66,225.47,225.45,38.68]
[1758523163658,6.0146888,225.46,225.45,38.68]
[1758523164176,6.0146888,225.46,225.37,17.76712423]
[1758523164177,14.69285112,225.45,225.35,0.68]
[1758523164350,6.0146888,225.4,225.36,38.66]
[1758523164549,6.0146888,225.4,225.37,0.68]
[1758523164851,37.2146888,225.42,225.38,0.68]
[1758523165056,0.66,225.46,225.39,0.68]
[1758523165057,4.43547083,225.46,225.39,0.68]
[1758523165266,37.2146888,225.45,225.39,0.68]
[1758523165652,37.2146888,225.45,225.4,13.33]
[1758523165870,6.0146888,225.41,225.38,13.33]
[1758523166057,6.0146888,225.41,225.39,38.66]
[1758523166566,2.39834421,225.41,225.4,22.34344277]
[1758523166771,6.0146888,225.43,225.39,38.66]
[1758523166954,6.0146888,225.43,225.39,39.38]
[1758523167158,6.0146888,225.46,225.4,0.72]
[1758523167368,0.7,225.52,225.4,0.72]
[1758523167688,6.0146888,225.43,225.41,38.64]
[1758523167857,6.0146888,225.42,225.41,38.64]
[1758523168646,4.4361636,225.42,225.41,38.64]
[1758523168858,44.3486762,225.42,225.41,38.64]
[1758523169070,39.9125126,225.42,225.41,38.64]
[1758523169767,31.2,225.42,225.41,38.64]
[1758523169972,39.9125126,225.42,225.41,38.64]
[1758523170357,44.3486762,225.42,225.41,38.64]
[1758523170550,35.1866636,225.42,225.36,14.05]
[1758523170757,43.8991762,225.42,225.38,13.33]
[1758523171068,13.1486762,225.42,225.38,14.05]
[1758523171574,22.1695822,225.54,225.39,0.72]
[1758523171764,8.7125126,225.49,225.39,0.72]
[1758523172770,8.7125126,225.47,225.4,51.95]
[1758523172972,8.7125126,225.47,225.4,266.95]
[1758523173283,8.7125126,225.47,225.41,0.72]
[1758523173953,8.7125126,225.45,225.43,13.33]
[1758523174155,8.7125126,225.45,225.41,13.33]
[1758523174361,0.7,225.47,225.44,38.6]
[1758523174970,31.2,225.49,225.44,52.65]
[1758523175149,5.13424587,225.52,225.45,0.72]
[1758523175352,8.7125126,225.51,225.45,215.72]
[1758523175553,4.43424587,225.52,225.45,13.33]
[1758523175874,0.7,225.59,225.46,0.72]
[1758523176179,8.7125126,225.56,225.48,13.33]
[1758523176356,8.7125126,225.54,225.48,13.33]
[1758523176555,31.2,225.55,225.48,14.05]
[1758523176771,39.9125126,225.55,225.48,14.05]
[1758523177258,4.43380331,225.54,225.48,14.05]
[1758523177975,4.43380331,225.54,225.5,13.33]
[1758523178172,8.7125126,225.51,225.44,0.72]
[1758523178376,8.7125126,225.49,225.44,0.72]
[1758523178675,8.7125126,225.47,225.45,25.8]
[1758523178874,8.7125126,225.47,225.46,38.58]
[1758523179172,8.7125126,225.47,225.45,38.58]
[1758523179376,8.7125126,225.47,225.46,38.58]
[1758523180362,40.6125126,225.47,225.45,38.56]
[1758523180565,8.7125126,225.46,225.45,38.56]
[1758523180766,9.4125126,225.46,225.39,0.72]
[1758523180970,8.7125126,225.4,225.38,38.56]
[1758523181170,13.14926667,225.39,225.38,38.56]
[1758523181369,39.9125126,225.41,225.38,38.56]
[1758523181968,8.7125126,225.39,225.38,38.56]
[1758523183482,9.4125126,225.39,225.37,38.56]
[1758523183686,9.4125126,225.38,225.37,38.56]
[1758523184566,8.7125126,225.38,225.37,38.56]
[1758523185183,31.2,225.35,225.33,38.74]
[1758523185381,8.7125126,225.34,225.33,38.74]
[1758523185978,31.2,225.35,225.33,52.79]
[1758523186694,8.7125126,225.34,225.33,0.2]
[1758523186984,31.9,225.37,225.33,0.2]
[1758523187165,35.63756732,225.35,225.33,0.2]
[1758523187364,8.7125126,225.34,225.33,0.2]
[1758523188497,0.7,225.34,225.33,0.2]
[1758523188672,9.4125126,225.34,225.33,0.2]
[1758523189181,31.2,225.31,225.29,0.2]
[1758523189386,13.151039,225.3,225.29,0.2]
[1758523189575,13.851039,225.3,225.29,0.2]
[1758523189776,13.851039,225.3,225.29,1e-08]
[1758523190465,13.151039,225.3,225.29,1e-08]
[1758523191388,31.2,225.3,225.29,1e-08]
[1758523192089,31.2,225.3,225.29,0.72000001]
[1758523192667,31.2,225.3,225.29,1e-08]
[1758523192993,0.7,225.43,225.29,0.72000001]
[1758523193196,8.7125126,225.39,225.29,0.72000001]
[1758523193490,4.43695092,225.38,225.29,14.05000001]
[1758523193694,8.7125126,225.35,225.3,0.72]
[1758523193983,8.7125126,225.35,225.31,0.72]
[1758523194190,8.7125126,225.35,225.32,0.72]
[1758523194387,8.7125126,225.37,225.34,13.33]
[1758523195491,4.43734469,225.36,225.34,13.33]
[1758523195690,8.7125126,225.37,225.34,13.33]
[1758523196288,8.7125126,225.35,225.34,13.33]
[1758523196491,31.2,225.35,225.34,13.33]
[1758523196691,44.34967752,225.37,225.34,13.33]
[1758523196878,31.2,225.37,225.35,0.67]
[1758523197078,4.43655723,225.4,225.36,0.67]
[1758523197382,4.43630127,225.42,225.36,0.67]
[1758523197711,31.2,225.4,225.36,14.0]
[1758523197880,27.2015,225.4,225.37,0.67]
[1758523198191,27.2015,225.4,225.38,13.33]
[1758523198391,13.14881387,225.42,225.4,13.33]
[1758523199006,4.43630127,225.42,225.4,13.33]
[1758523199177,8.7125126,225.41,225.4,13.33]
[1758523200494,4.43655723,225.4,225.39,38.48]
[1758523200692,4.43655723,225.4,225.39,51.81]
[1758523201280,31.2,225.41,225.39,52.48]
[1758523201499,31.2,225.41,225.39,51.81]
[1758523201698,31.2,225.41,225.32,0.67]
[1758523201699,24.9604629,225.4,225.32,0.67]
[1758523201894,8.7125126,225.35,225.34,13.33]
[1758523202504,8.7125126,225.35,225.29,38.44000001]
[1758523202688,8.7125126,225.31,225.29,38.44000001]
[1758523202883,39.9125126,225.37,225.3,14.0]
[1758523203799,8.7125126,225.31,225.29,1e-08]
[1758523204192,0.72,225.3,225.29,1e-08]
[1758523205599,5.1585264,225.3,225.29,1e-08]
[1758523206207,4.4385264,225.3,225.29,1e-08]
[1758523206601,13.151039,225.3,225.29,1e-08]
[1758523207012,8.7125126,225.31,225.29,0.67000001]
[1758523207411,8.7125126,225.31,225.3,38.42]
[1758523208503,4.43813729,225.32,225.3,51.75]
[1758523208702,4.43813729,225.32,225.3,52.42]
[1758523208906,13.15064989,225.32,225.3,51.75]
[1758523210419,24.96598097,225.32,225.3,38.4]
[1758523210921,0.72,225.31,225.3,38.4]
[1758523211410,31.2,225.3,225.29,1e-08]
[1758523211616,40.6325126,225.3,225.29,1e-08]
[1758523211915,31.2,225.26,225.2,36.0]
[1758523212106,31.2,225.26,225.22,13.33]
[1758523212697,0.72,225.25,225.11,0.2]
[1758523212912,32.47493895,225.25,225.11,0.9]
[1758523213105,31.2,225.2,225.11,0.2]
[1758523213311,20.0,225.23,225.11,0.2]
[1758523213312,39.9125126,225.12,225.11,0.2]
[1758523214118,44.35458793,225.12,225.11,0.2]
[1758523215419,13.87458793,225.12,225.1,1e-08]
[1758523215719,1.27528408,225.11,225.1,1e-08]
[1758523216525,31.2,225.07,225.06,0.2]
[1758523216729,39.9125126,225.07,225.06,0.2]
[1758523217111,31.2,225.07,225.06,0.2]
[1758523217298,39.9125126,225.07,225.06,0.2]
[1758523217617,31.2,225.07,225.06,0.9]
[1758523218017,4.4430201,225.08,225.06,0.2]
[1758523218221,8.7125126,225.07,225.06,0.2]
[1758523218401,35.6430201,225.08,225.06,0.2]
[1758523218601,8.7125126,225.07,225.06,0.2]
[1758523218808,8.7125126,225.09,225.07,0.7]
[1758523219126,8.7125126,225.09,225.08,0.7]
[1758523219635,35.64216113,225.12,225.08,0.7]
[1758523219808,8.7125126,225.11,225.09,0.7]
[1758523220128,4.44247001,225.1,225.09,0.7]
[1758523220704,8.7125126,225.11,225.09,0.7]
[1758523220924,8.7125126,225.11,225.1,38.38]
[1758523221222,8.7125126,225.13,225.1,39.08]
[1758523221520,4.43990587,225.23,225.11,14.03]
[1758523221722,4.43990587,225.23,225.12,0.7]
[1758523222118,4.43990587,225.23,225.14,13.33]
[1758523222318,4.43990587,225.23,225.15,0.7]
[1758523222517,4.43990587,225.23,225.16,51.69]
[1758523222827,8.7125126,225.28,225.17,0.7]
[1758523223324,8.7125126,225.26,225.17,0.7]
[1758523223916,8.7125126,225.26,225.18,17.77089173]
[1758523224218,4.43938015,225.26,225.19,0.7]
[1758523224430,4.43905567,225.28,225.19,0.7]
[1758523224629,13.15156827,225.28,225.19,0.7]
[1758523224928,8.7125126,225.24,225.2,38.36]
[1758523225127,8.7125126,225.21,225.16,14.03]
[1758523225329,8.7125126,225.19,225.17,38.36]
[1758523225530,8.7125126,225.21,225.18,14.03]
[1758523225703,8.7125126,225.22,225.18,13.33]
[1758523226122,8.7125126,225.2,225.18,14.03]
[1758523226430,8.7125126,225.2,225.12,0.7]
[1758523226732,31.2,225.2,225.14,13.33]
[1758523226908,31.2,225.2,225.14,14.0]
[1758523227113,8.7125126,225.22,225.15,0.67]
[1758523227627,31.2,225.28,225.15,0.67]
[1758523227815,8.7125126,225.23,225.15,0.67]
[1758523228129,4.44010301,225.22,225.15,0.67]
[1758523228312,4.44010301,225.22,225.16,13.33]
[1758523228515,6.03329511,225.18,225.16,13.33]
[1758523228714,6.03329511,225.18,225.16,38.34]
[1758523230006,6.03329511,225.18,225.11,0.67]
[1758523230209,4.44227266,225.11,225.08,13.33]
[1758523230412,6.03329511,225.1,225.09,51.65]
[1758523230829,6.03329511,225.12,225.09,52.32]
[1758523231334,6.03329511,225.12,225.06,14.2]
[1758523231515,6.03329511,225.12,225.08,13.33]
[1758523231716,6.03329511,225.1,225.08,13.33]
[1758523231927,6.03329511,225.1,225.09,38.32]
[1758523232323,10.47576512,225.1,225.09,38.32]
[1758523232620,10.47576512,225.1,225.06,0.2]
[1758523232812,10.47576512,225.1,225.07,51.65]
[1758523233022,10.47576512,225.1,225.07,52.32]
[1758523233527,10.47576512,225.1,225.07,51.65]
[1758523233843,6.03329511,225.1,225.06,0.2]
[1758523234013,4.44211969,225.12,225.07,51.63]
[1758523234214,4.44179188,225.14,225.07,51.63]
[1758523234415,6.03329511,225.12,225.07,51.63]
[1758523234615,6.03329511,225.12,225.07,52.3]
[1758523234918,6.03329511,225.1,225.07,51.63]
[1758523235122,6.03329511,225.08,225.07,38.3]
[1758523235316,6.03329511,225.08,225.06,0.2]
[1758523235640,1.26538276,225.07,225.06,1e-08]
[1758523236138,1.26538276,225.07,224.96,0.67]
[1758523236139,7.29867787,225.07,224.96,0.67]
[1758523236342,31.2,225.02,224.99,38.3]
[1758523236512,6.03329511,225.0,224.99,38.3]
[1758523236715,0.5554568,225.04,224.99,38.97]
[1758523237022,6.03329511,225.04,224.99,38.97]
[1758523237339,6.03329511,225.04,225.0,0.67]
[1758523237526,0.71,225.09,225.01,38.97]
[1758523237737,6.03329511,225.05,225.01,38.97]
[1758523238221,31.2,225.05,225.01,38.97]
[1758523238420,4.44365446,225.04,225.01,38.97]
[1758523238621,10.47694957,225.04,225.01,38.97]
[1758523239316,6.03329511,225.02,224.98,13.53]
[1758523239534,6.03329511,225.03,224.99,38.95]
[1758523240229,6.03329511,225.01,224.99,38.28]
[1758523240531,31.91,225.06,224.99,38.95]
[1758523240732,6.03329511,225.03,224.99,38.28]
[1758523240926,6.03329511,225.03,225.0,0.67]
[1758523241419,10.47675211,225.05,225.01,0.67]
[1758523241932,10.47675211,225.05,225.02,0.67]
[1758523242137,6.03329511,225.04,224.99,14.0]
[1758523242349,6.03329511,225.04,225.0,38.28]
[1758523242522,4.443457,225.05,225.0,38.28]
[1758523242523,6.03329511,225.02,225.0,38.28]
[1758523242718,6.03329511,225.02,225.01,38.28]
[1758523242925,31.2,225.06,225.01,38.28]
[1758523242926,37.23329511,225.05,225.01,52.28]
[1758523244141,6.03329511,225.05,225.02,38.93]
[1758523244317,31.2,225.06,225.02,38.93]
[1758523244517,4.443457,225.05,225.02,38.26]
[1758523244735,41.67675211,225.05,225.02,38.26]
[1758523244922,35.643457,225.05,225.02,38.26]
[1758523245752,35.643457,225.05,225.03,13.33]
[1758523247324,35.643457,225.05,225.0,0.67]
[1758523247529,41.67675211,225.05,225.04,13.33]
[1758523247827,52.78539463,225.05,225.01,13.33]
[1758523248032,52.78539463,225.05,225.04,38.24]
[1758523248539,6.03329511,225.06,225.04,51.57]
[1758523249231,31.2,225.05,225.04,51.57]
[1758523249434,37.23329511,225.05,225.04,51.57]
[1758523249654,37.23329511,225.05,225.0,0.67]
[1758523249951,6.03329511,225.03,225.02,13.33]
[1758523250743,4.44385193,225.03,224.98,0.2]
[1758523250938,5.15385193,225.03,225.0,7.29670489]
[1758523251139,16.26348175,225.03,225.0,7.29670489]
[1758523251445,15.55348175,225.03,225.0,7.29670489]
[1758523251624,6.03329511,225.01,225.0,7.29670489]
[1758523252219,4.44388824,225.03,225.0,7.29670489]
[1758523252424,6.03329511,225.02,225.0,7.29670489]
[1758523252635,10.47734452,225.02,225.01,7.29670489]
[1758523252837,10.47734452,225.02,224.98,0.2]
[1758523252838,31.2,224.99,224.98,0.2]
[1758523253045,37.23329511,224.99,224.98,0.2]
[1758523253539,37.94329511,224.99,224.98,0.2]
[1758523253931,37.23329511,224.99,224.98,0.2]
[1758523254635,42.38793709,224.99,224.98,0.2]
[1758523255267,41.67793709,224.99,224.98,0.2]
[1758523255449,31.2,225.03,224.98,0.87]
[1758523255746,31.2,224.99,224.98,13.53]
[1758523255938,31.2,224.99,224.98,51.73]
[1758523256248,6.03329511,224.99,224.98,13.53]
[1758523256749,11.18793709,224.99,224.98,1e-08]
[1758523256928,11.74351733,224.99,224.98,1e-08]
[1758523258549,5.00022222,224.99,224.98,1e-08]
[1758523258732,0.68,225.03,224.98,1e-08]
[1758523259041,6.03329511,224.99,224.98,1e-08]
[1758523259349,37.23329511,224.99,224.98,1e-08]
[1758523260035,4.44404941,225.02,224.98,0.71000001]
[1758523260238,4.44306215,225.07,224.99,0.71]
[1758523260542,6.03329511,225.04,224.99,0.71]
[1758523260728,4.44404381,225.03,225.01,13.33]
[1758523260931,6.03329511,225.04,225.02,0.71]
[1758523261131,6.03329511,225.04,225.02,38.2]
[1758523261132,6.03329511,225.03,225.02,38.2]
[1758523261345,6.03329511,225.03,225.02,38.18]
[1758523261644,0.55535809,225.08,225.02,52.22]
[1758523261837,6.03329511,225.05,225.02,52.22]
[1758523262240,6.03329511,225.04,225.02,52.22]
[1758523262552,6.03329511,225.03,225.02,38.18]
[1758523262769,15.55417295,225.02,225.01,38.18]
[1758523263044,6.03329511,225.02,225.01,38.18]
[1758523263354,6.03329511,225.04,225.02,13.33]
[1758523263540,6.03329511,225.04,225.02,14.04]
[1758523263855,31.2,225.04,225.03,38.18]
[1758523264245,31.2,225.04,225.03,38.89]
[1758523264447,15.54940495,225.09,225.04,13.33]
[1758523264641,6.03329511,225.08,225.05,0.71]
[1758523264839,6.03329511,225.08,225.04,13.33]
[1758523264840,6.03329511,225.08,225.06,0.71]
[1758523265240,6.03329511,225.07,225.04,13.33]
[1758523265434,6.03329511,225.07,225.06,13.33]
[1758523265636,4.44187802,225.13,225.06,38.87]
[1758523265952,4.44187802,225.13,225.07,0.71]
[1758523266143,6.03329511,225.15,225.07,0.71]
[1758523266345,6.03329511,225.16,225.07,0.71]
[1758523266532,6.03329511,225.15,225.07,0.71]
[1758523266843,6.03329511,225.15,225.09,13.33]
[1758523267049,6.03329511,225.17,225.1,0.71]
[1758523267251,10.47398963,225.19,225.12,13.33]
[1758523267449,22.84961836,225.28,225.13,0.71]
[1758523267765,6.03329511,225.17,225.15,13.33]
[1758523267959,6.03329511,225.17,225.16,38.16]
[1758523268146,6.03329511,225.19,225.16,38.16]
[1758523268457,31.2,225.23,225.17,38.14]
[1758523268632,6.03329511,225.18,225.16,0.71]
[1758523268838,4.44128619,225.16,225.11,0.71]
[1758523269159,6.03329511,225.17,225.12,51.47]
[1758523269335,37.23329511,225.18,225.13,0.71]
[1758523269650,6.03329511,225.17,225.13,0.71]
[1758523269842,6.03329511,225.17,225.14,38.85]
[1758523270358,6.03329511,225.17,225.15,38.14]
[1758523270848,4.44128619,225.16,225.11,0.71]
[1758523271152,15.54450168,225.16,225.12,38.12]
[1758523271456,6.03329511,225.13,225.07,0.68]
[1758523271649,6.03329511,225.08,225.03,0.68]
[1758523271840,6.03329511,225.06,225.03,0.68]
[1758523272033,6.03329511,225.06,225.04,38.12]
[1758523272237,6.03329511,225.09,225.05,0.68]
[1758523272442,31.2,225.11,225.06,38.8]
[1758523272953,10.47596248,225.09,225.06,38.12]
[1758523273166,6.03329511,225.08,225.07,38.12]
[1758523273447,31.2,225.11,225.07,38.8]
[1758523273636,4.44148345,225.15,225.08,0.68]
[1758523273838,35.64148345,225.15,225.08,0.68]
[1758523274250,35.64148345,225.15,225.09,38.1]
[1758523274447,35.64148345,225.15,224.99,4.4445998]
[1758523274448,48.00037751,225.15,225.1,38.1]
[1758523274641,6.03329511,225.1,225.04,0.68]
[1758523274852,6.03329511,225.1,225.05,38.1]
[1758523275052,4.44266737,225.09,225.05,38.1]
[1758523275245,4.44266737,225.09,225.06,0.68]
[1758523275459,4.44266737,225.09,225.03,0.68]
[1758523275773,6.03329511,225.08,225.04,38.1]
[1758523276271,6.03329511,225.08,225.05,38.1]
[1758523276466,4.44266737,225.09,225.05,38.78]
[1758523277165,4.44266737,225.09,225.05,38.1]
[1758523277370,4.44266737,225.09,225.06,0.68]
[1758523277666,0.55521009,225.14,225.05,38.1]
[1758523277667,31.2,225.14,225.07,0.68]
[1758523277970,6.03329511,225.09,225.03,38.76]
[1758523278543,4.44190831,225.13,225.04,0.68]
[1758523278978,0.7,225.22,225.05,13.33]
[1758523279149,15.54105057,225.21,225.06,18.45325957]
[1758523279474,15.54105057,225.21,225.07,0.68]
[1758523279770,15.54105057,225.21,225.08,51.41]
[1758523279966,15.54105057,225.21,225.09,0.68]
[1758523280275,31.2,225.21,225.1,17.77247001]
[1758523280466,15.53898063,225.24,225.11,0.68]
[1758523280765,4.43970875,225.24,225.11,0.68]
[1758523281663,15.53708085,225.27,225.13,13.33]
[1758523281968,10.47241261,225.27,225.15,13.33]
[1758523282169,4.53911203,225.28,225.16,0.68]
[1758523282356,0.1,225.28,225.19,13.33]
[1758523282547,4.53895265,225.28,225.21,13.33]
[1758523282749,4.53895265,225.28,225.18,31.2]
[1758523282750,4.53895265,225.28,225.22,51.39]
[1758523282950,4.53895265,225.28,225.22,13.33]
[1758523283151,4.53895265,225.28,225.23,52.07]
[1758523283359,4.53895265,225.28,225.24,0.68]
[1758523283968,4.53895265,225.28,225.25,38.06]
[1758523284151,0.1,225.28,225.25,38.06]
[1758523284351,0.1,225.28,225.26,14.01]
[1758523284855,0.1,225.28,225.27,52.05]
[1758523285364,0.1,225.28,225.27,51.37]
[1758523285568,0.1,225.28,225.27,38.04]
[1758523285867,0.1,225.28,225.19,0.68]
[1758523285868,11.27228309,225.28,225.19,0.68]
[1758523286056,0.1,225.28,225.2,38.04]
[1758523286257,4.53894171,225.28,225.21,0.68]
[1758523286658,0.1,225.28,225.21,14.01]
[1758523287079,0.1,225.28,225.22,0.71]